Cogmind - Beta 16 --- EXPLORER MODE // 2026.01.29 @ 15:56:13 Player: K.K.Y. Result: Destroyed by Y-45 Defender with Heavy Assault Rifle Performance ------------- Evolutions (0) 0 Regions Visited (4) 800 Robots Destroyed (46) 230 Value Destroyed (1127) 1127 Prototype IDs (12) 240 Alien Tech Used (0) 0 Bonus (-31) -31 TOTAL SCORE: 2366 Bonus ------- Follower Combat Kills 205 Friendly Fire -236 Cogmind --------- Core Integrity 0/250 Matter 275/300 Energy 100/100 System Corruption 0% Temperature Cool (27) Movement Core (1450) Ox28 Location -9/Recycling Parts ------- > --- POWER (1) -------- (None) > --- PROPULSION (2) --- Cargo Legs > --- UTILITY (3+2) ---- Huge Storage Unit Improved Terrain Scanner > --- WEAPON (2) ------- Makeshift Laser Makeshift Shrapnel Gun > --- INVENTORY (25) --- Medium Storage Unit High-capacity Storage Unit Makeshift Light Armor Plating Makeshift System Shield Datajack Mining Laser Multitool SUBCON Basin (Full) Peak State ------------ > --- POWER ------------ Makeshift Power Source > --- PROPULSION ------- Cargo Legs > --- UTILITY ---------- Medium Storage Unit Huge Storage Unit Improved Terrain Scanner > --- WEAPON ----------- Makeshift Laser Makeshift Shrapnel Gun > --- INVENTORY -------- High-capacity Storage Unit Makeshift Light Armor Plating Makeshift System Shield Datajack Mining Laser Multitool SUBCON Basin [Rating: 52] Favorites ----------- Power Makeshift Power Source Engine Makeshift Power Source Propulsion Light Treads Treads Light Treads Leg Cargo Legs Utility Improved Terrain Scanner Device Improved Terrain Scanner Storage Medium Storage Unit Weapon Makeshift Shrapnel Gun Energy Gun Beam Rifle Ballistic Gun Makeshift Shrapnel Gun Special Weapon Mining Laser Build | -11 -10 -10 -10 -9 ------- Run | Yrd Mat Min Sub Rec Slots Evolved 1 | . 1 . . . Power . | . . . . . Propulsion . | . . . . . Utility 1 | . 1 . . . Weapon . | . . . . . Parts Attached 25 | 6 5 3 11 . Power 3 | 1 . . 2 . Engine 3 | 1 . . 2 . Core . | . . . . . Reactor . | . . . . . Propulsion 7 | 2 . 1 4 . Treads 6 | 2 . 1 3 . Leg 1 | . . . 1 . Wheel . | . . . . . Hover . | . . . . . Flight . | . . . . . Utility 6 | 1 2 1 2 . Device 3 | . 2 . 1 . Storage 3 | 1 . 1 1 . Processor . | . . . . . Hackware . | . . . . . Protection . | . . . . . Artifact . | . . . . . Weapon 9 | 2 3 1 3 . Energy Gun 5 | . 2 1 2 . Energy Cannon . | . . . . . Ballistic Gun 3 | 2 . . 1 . Ballistic Cannon . | . . . . . Launcher . | . . . . . Special Weapon 1 | . 1 . . . Impact Weapon . | . . . . . Slashing Weapon . | . . . . . Piercing Weapon . | . . . . . Special Melee Weapon . | . . . . . Unidentified Prototypes . | . . . . . Parts Lost 8 | . . 1 6 1 Power 2 | . . . 1 1 Propulsion 2 | . . . 2 . Utility 2 | . . 1 1 . Weapon 2 | . . . 2 . Highest Loss Streak 3 | . . 1 3 1 To Critical Strikes . | . . . . . Average Backups 7 | . 5 8 8 7 Power . | . . . . . Propulsion . | . . 2 . . Utility 3 | . 2 3 3 4 Weapon 1 | . 1 2 2 1 Tool/Special . | . . . . . Unused Backups 6 | . . . 1 5 Power . | . . . . . Propulsion . | . . . . . Utility 3 | . . . . 3 Weapon 1 | . . . 1 . Tool/Special 2 | . . . . 2 Average Slot Usage (%) 73 | . 93 91 72 59 Engine 11 | . 12 12 11 9 Treads 11 | . 25 25 12 . Leg 4 | . . . 3 10 Device 11 | . 18 16 9 10 Storage 11 | . 12 12 11 10 Energy Gun 15 | . 23 25 13 10 Ballistic Gun 5 | . . . 5 10 Special Weapon 1 | . . . 3 . Peak Build Rating 52 | 6 8 10 52 51 Average Rating 27 | 5 7 8 25 50 On Entrance 14 | . 6 8 9 51 Avg Prop Armor Cover (%) 19 | . . . 19 19 Naked Turns . | . . . . . Heaviest Build 99 | 18 21 21 99 89 Greatest Support 55 | 40 40 40 55 3 Greatest Overweight (x) 32 | . . . 32 29 Average Overweight (x) 2 | . . . 2 28 Largest Inventory Capacity 25 | 10 10 20 25 25 Average Capacity 15 | 9 10 10 13 25 Most Carried 22 | 5 7 10 22 22 Average Carried 13 | . 5 8 11 22 Final Capacity 25 | 10 10 10 25 25 Final Carried 22 | 2 7 10 22 22 Class Distribution -------------------- 76% | Hacker-Mutant 23% | Scavenger-Mutant Dominant Class ---------------- Hacker-Mutant | -10/Materials Hacker-Mutant | -10/Mines Hacker-Mutant | -10/Subcaves Hacker-Mutant | -9/Recycling Resources | -11 -10 -10 -10 -9 ----------- Run | Yrd Mat Min Sub Rec Matter Collected 755 | 311 69 30 335 10 Remotely . | . . . . . Salvage Created 1481 | 134 321 89 796 141 Parts 102 | 11 26 4 53 8 Haulers Intercepted 1 | . 1 . . . Recyclers Shooed . | . . . . . Parts Field Recycled . | . . . . . Retrieved Matter . | . . . . . Parts Self-Destructed . | . . . . . Prevented . | . . . . . Parts Restored . | . . . . . Kills | -11 -10 -10 -10 -9 ------- Run | Yrd Mat Min Sub Rec Combat Hostiles Destroyed 33 | . 8 4 18 3 Guns 31 | . 8 3 17 3 Cannons 1 | . . . 1 . Classes Destroyed 12 | 2 5 . 5 . Builder 1 | . 1 . . . Tunneler 3 | 3 . . . . Hauler 1 | . 1 . . . Recycler 1 | 1 . . . . Turret 2 | . . . 2 . Watcher 3 | . 3 . . . Swarmer 12 | . 6 3 3 . Grunt 3 | . 2 1 . . Sentry 4 | . . . 1 3 Artisan 3 | . . . 3 . Subdweller 14 | . . . 14 . Zionite 2 | . . . 2 . Best Kill Streak 4 | 2 4 2 4 2 Combat Bots Only 4 | . 4 2 3 2 Max Kills in Single Turn 2 | 1 2 1 1 1 Gunslinging 1 | . 1 . . . Exploded . | . . . . . Melee . | . . . . . Uniques/NPCs Destroyed . | . . . . . Combat | -11 -10 -10 -10 -9 -------- Run | Yrd Mat Min Sub Rec Hostile Shots Fired 198 | . 26 28 122 22 Missed 57 | . 4 8 39 6 Hits 141 | . 22 20 83 16 Projectile 141 | . 22 20 83 16 Critical Strikes 3 | . . . 1 2 Damage Taken 1272 | . 153 176 802 141 Core 258 | . 59 6 155 38 Absorbed by Shields . | . . . . . Ignored by Resistances 791 | . 104 106 494 87 Core Remaining (%) 100 | 100 . . . . Volleys Fired 200 | 15 22 13 143 7 Largest 2 | 2 2 2 2 2 Hottest 174 | 40 150 106 174 174 Shots Fired 385 | 30 44 26 273 12 Gun 318 | 30 43 26 207 12 Cannon . | . . . . . Launcher . | . . . . . Special 67 | . 1 . 66 . Kinetic 59 | 30 . . 22 7 Thermal 326 | . 44 26 251 5 Explosive . | . . . . . Electromagnetic . | . . . . . Robot Hit Streak 40 | 8 11 13 32 40 Robot Miss Streak 2 | 2 1 1 2 1 Penetration Max . | . . . . . Secondary Targets 7 | . 2 1 4 . Max Gunslinging Chain 1 | . 1 1 1 . Shots Hit Robots 199 | 22 29 21 117 10 Core Hits 89 | 6 17 9 49 8 Critical Kills . | . . . . . Critical Parts Destroyed . | . . . . . Critical Strikes 16 | . 2 4 10 . Burn 16 | . 2 4 10 . Melee Attacks . | . . . . . Impact . | . . . . . Slashing . | . . . . . Piercing . | . . . . . Sneak Attacks . | . . . . . Combat Hostiles . | . . . . . Follow-up Attacks . | . . . . . Damage Inflicted 2905 | 212 371 266 1738 318 Guns 2881 | 212 371 266 1714 318 Cannons . | . . . . . Explosions . | . . . . . Melee . | . . . . . Ramming . | . . . . . Kinetic 591 | 212 . . 229 150 Thermal 2314 | . 371 266 1509 168 Explosive . | . . . . . Electromagnetic . | . . . . . Impact . | . . . . . Slashing . | . . . . . Piercing . | . . . . . Highest Corruption . | . . . . . Average Corruption . | . . . . . Corruption Purged . | . . . . . Corruption Blocked . | . . . . . Overload Shots 12 | . . . 7 5 Effects 1 | . . . 1 . Short Circuit 1 | . . . 1 . Overflow Damage . | . . . . . Projectiles . | . . . . . Explosions . | . . . . . Melee . | . . . . . Knockbacks . | . . . . . Impact . | . . . . . Kinetic . | . . . . . Secondary . | . . . . . Self-Inflicted Damage . | . . . . . Shots . | . . . . . Rammed . | . . . . . Targets Rammed . | . . . . . Kicked . | . . . . . Crushed . | . . . . . Highest Temperature 324 | . 190 276 138 324 Average Temperature 67 | . 58 96 25 159 Received Heat Transfer 579 | . 48 117 315 99 Effects 2 | . . . . 2 Interference 2 | . . . . 2 Siege Activations . | . . . . . Martial Activations . | . . . . . Shielding Activations . | . . . . . Robots Disrupted . | . . . . . Combat Hostiles . | . . . . . Robots Corrupted . | . . . . . Combat Hostiles . | . . . . . Parts Fried . | . . . . . Impact Corruptions . | . . . . . Robots Melted 1 | . . 1 . . Combat Hostiles 1 | . . 1 . . Parts Melted 11 | . 2 . 9 . Heat Transferred 7145 | . 1258 1073 4564 250 Parts Sabotaged . | . . . . . Parts Stolen . | . . . . . Parts Stripped . | . . . . . Power Chain Reactions . | . . . . . Alert | -11 -10 -10 -10 -9 ------- Run | Yrd Mat Min Sub Rec Maximum Alert Level . | . . . . . Low Security (%) 100 | 100 100 100 . 100 Level 1 . | . . . . . Level 2 . | . . . . . Level 3 . | . . . . . Level 4 . | . . . . . Level 5 . | . . . . . High Security . | . . . . . Max Security . | . . . . . Peak Influence 100 | 10 100 51 . 40 Initial . | . . . . . Average 3 | 1 8 5 . . Influence Increases 780 | 20 247 193 260 60 Destroy 0b10 Robot/C 520 | . 160 160 140 60 Destroy 0b10 Robot/NC 45 | 20 25 . . . Destroy Leader 78 | . 48 30 . . Allied During Kill 3 | . . 3 . . Successful Hack 10 | . 10 . . . Disable Machine 4 | . 4 . . . Lose Combat Pursuer 120 | . . . 120 . Influence Decreases 770 | 20 247 193 260 50 Time Decay 770 | 20 247 193 260 50 Squads Dispatched . | . . . . . Investigation . | . . . . . Extermination . | . . . . . Reinforcement . | . . . . . Assault . | . . . . . Garrison . | . . . . . Intercept . | . . . . . Searches Triggered . | . . . . . Construction Impeded . | . . . . . Haulers Reinforced . | . . . . . Active Scanning Responses . | . . . . . Cargo Convoy Interrupts . | . . . . . Stealth | -11 -10 -10 -10 -9 --------- Run | Yrd Mat Min Sub Rec Distress Signals . | . . . . . Communications Jammed . | . . . . . Distress Signals . | . . . . . Times Spotted 50 | . 13 8 25 4 Peak Tracking Total 3 | . 2 2 3 2 Tactical Retreats 3 | . . . 3 . Traps | -11 -10 -10 -10 -9 ------- Run | Yrd Mat Min Sub Rec Traps Triggered 2 | . 2 . . . Indirectly . | . . . . . Trap Hack Attempts . | . . . . . Triggered . | . . . . . Disarmed 8 | . 8 . . . Reprogrammed . | . . . . . Reused . | . . . . . Traps Extracted . | . . . . . Installed . | . . . . . Triggered . | . . . . . Machines | -11 -10 -10 -10 -9 ---------- Run | Yrd Mat Min Sub Rec Machines Disabled 3 | . 1 . 2 . Max in Single Turn 1 | . 1 . 1 . Machines Repaired . | . . . . . Machines Dismantled . | . . . . . Machines Sabotaged . | . . . . . Overloaded Fab Kills . | . . . . . Hacking | -11 -10 -10 -10 -9 --------- Run | Yrd Mat Min Sub Rec Machines Accessed 12 | . 8 . 4 . Terminals 7 | . 7 . . . Fabricators . | . . . . . Repair Stations . | . . . . . Recycling Units 1 | . 1 . . . Scanalyzers . | . . . . . Garrison Access . | . . . . . Total Hacks 30 | . 22 . 8 . Successful 24 | . 16 . 8 . Failed 6 | . 6 . . . Catastrophic . | . . . . . Database Lockouts . | . . . . . Manual 16 | . 16 . . . Terminals 20 | . 20 . . . Fabricators . | . . . . . Repair Stations . | . . . . . Recycling Units 2 | . 2 . . . Scanalyzers . | . . . . . Garrison Access . | . . . . . Terminal Hacks 19 | . 11 . 8 . Record 5 | . . . 5 . Part Schematic 4 | . 4 . . . Robot Schematic 4 | . 4 . . . Robot Analysis 1 | . 1 . . . Open Door 1 | . . . 1 . Disarm Traps 2 | . 2 . . . Proto ID Catalog 1 | . . . 1 . Release Object 1 | . . . 1 . Fabricator Hacks . | . . . . . Repair Station Hacks . | . . . . . Recycling Unit Hacks 1 | . 1 . . . Retrieve Components 1 | . 1 . . . Scanalyzer . | . . . . . Garrison Access Hacks . | . . . . . Unauthorized Hacks 4 | . 4 . . . Terminals 4 | . 4 . . . Botnet 4 | . 4 . . . Fabricators . | . . . . . Repair Stations . | . . . . . Recycling Units . | . . . . . Scanalyzers . | . . . . . Garrison Access . | . . . . . Data Cores Recovered . | . . . . . Used . | . . . . . Hacking Detections 4 | . 4 . . . Full Trace Events . | . . . . . Feedback Events . | . . . . . Feedback Blocked . | . . . . . Robot Schematics Acquired 4 | . 4 . . . Robots Built . | . . . . . Authchips . | . . . . . Time . | . . . . . Total Robot Build Rating . | . . . . . Part Schematics Acquired 3 | . 3 . . . Parts Built . | . . . . . Authchips . | . . . . . Time . | . . . . . Total Part Build Rating . | . . . . . Part Studies Acquired . | . . . . . Parts Repaired . | . . . . . Time . | . . . . . Parts Recycled . | . . . . . Recycled Matter . | . . . . . Retrieved Matter . | . . . . . Retrieved Components 10 | . 10 . . . Parts Scanalyzed . | . . . . . Part Schematics Acquired . | . . . . . Parts Damaged . | . . . . . Bothacking | -11 -10 -10 -10 -9 ------------ Run | Yrd Mat Min Sub Rec Used RIF Installer . | . . . . . Robots Hacked . | . . . . . Non-combat . | . . . . . Combat . | . . . . . Robot Hacks Applied . | . . . . . Relay Couplers Released . | . . . . . Fabnet Peak Effective % . | . . . . . Robots Rewired . | . . . . . Allies Hacked . | . . . . . Hacks Repelled . | . . . . . Allies | -11 -10 -10 -10 -9 -------- Run | Yrd Mat Min Sub Rec Total Allies 2 | . . 2 . . Largest Group 2 | . . 2 2 . Highest-Rated Group 49 | . . 49 49 . Highest-Rated Ally 31 | . . 31 31 . Total Orders . | . . . . . Ally Attacks 31 | . . 13 18 . Total Damage 529 | . . 254 275 . Kills 8 | . . 4 4 . Allies Corrupted . | . . . . . Allies Melted . | . . . . . Intel | -11 -10 -10 -10 -9 ------- Run | Yrd Mat Min Sub Rec Active Infowar (turns) 10041 | . 997 1007 5400 2637 Sensors 1327 | . 997 330 . . Terrain 7176 | . . . 4539 2637 Structural 2703 | . 835 1007 861 . Robot Analysis Total 1 | . 1 . . . Derelict Logs Recovered 2 | . . . 2 . Drone Launches . | . . . . . Drone Recoveries . | . . . . . Exploration | -11 -10 -10 -10 -9 ------------- Run | Yrd Mat Min Sub Rec Turns Passed 11022 | 117 1221 1007 6040 2637 Spaces Moved 3360 | 44 687 577 1878 174 Core 590 | 12 . . 404 174 Treads 2541 | 32 687 577 1245 . Legs 229 | . . . 229 . Wheels . | . . . . . Hover . | . . . . . Flight . | . . . . . Fastest Speed 50 | 50 160 160 130 1450 Average Speed 285 | 130 160 160 261 1498 Slowest Speed 1650 | 160 160 160 1650 1500 Overloaded Moves . | . . . . . Propulsion Burnouts . | . . . . . Robots Hopped . | . . . . . Potential Cave-ins 1 | . . . 1 . Cave-ins Triggered . | . . . . . Exploration Rate (%) 67 | 4 99 98 94 44 Regions Visited 4 Branch Regions 3 Pre-discovered Areas 4 | . . 1 3 . Known Exits Taken 4 | 1 1 1 1 . Unknown Exits Taken . | . . . . . Scrap Searched 10 | . . 1 9 . Spaces Dug 18 | . . . 18 . Terrain Destroyed 18 | . . . 18 . Melee . | . . . . . Projectile 18 | . . . 18 . AOE . | . . . . . Terrain Rammed . | . . . . . Walls Destroyed . | . . . . . Machines Disabled . | . . . . . Actions | -11 -10 -10 -10 -9 --------- Run | Yrd Mat Min Sub Rec Total 4288 | 76 762 635 2613 202 Wait 651 | 5 37 38 550 21 Move 3356 | 43 686 576 1877 174 Hop . | . . . . . Pick Up 29 | 7 9 3 10 . Fast Attach 2 | 1 . 1 . . Attach 13 | 5 2 . 6 . Detach 1 | . . . 1 . Swap 24 | . 4 2 18 . Drop 12 | . 2 2 8 . Fire 200 | 15 22 13 143 7 Melee . | . . . . . Ram . | . . . . . Kick . | . . . . . Crush . | . . . . . Escape Stasis . | . . . . . Rewire . | . . . . . Trap . | . . . . . Miscellaneous . | . . . . . Route ------- -11/Scrapyard -10/Materials (discovered 4 exits: *Mat x3 / *Min) -10/Mines (discovered 4 exits: *Mat x2 / *Exi / *Sub) -10/Subcaves (discovered 4 exits: *Mat x2 / *Rec / [*Scr]) -9/Recycling (discovered 1 exit: *Fac) History --------- Turn | Location | Event 6 | -11/Scrapyard | Identified exit to Materials 6 | -11/Scrapyard | Discovered exit to Materials (range 16) 118 | -11/Scrapyard | Entered Materials 118 | -10/Materials | Evolved 1 slot: Utility x1 307 | -10/Materials | Build established: Hacker-Mutant 331 | -10/Materials | Identified exit to Materials 331 | -10/Materials | Discovered exit to Materials (range 9) 540 | -10/Materials | Identified exit to Mines 540 | -10/Materials | Discovered exit to Mines (range 13) 710 | -10/Materials | Discovered exit to Materials (range 4) 1058 | -10/Materials | Discovered exit to Materials (range 16) 1339 | -10/Materials | Entered Mines 1498 | -10/Mines | Discovered exit to Materials (range 9) 1548 | -10/Mines | Discovered exit to Materials (range 6) 1771 | -10/Mines | Deemed a non-threat by the Exiles lab entrance 1771 | -10/Mines | Identified exit to Exiles 1771 | -10/Mines | Discovered exit to Exiles (range 5) 1916 | -10/Mines | Found a hidden stash of uninstalled traps 1935 | -10/Mines | Learned location of Storage (-9) 1992 | -10/Mines | Identified exit to Subcaves 1992 | -10/Mines | Discovered exit to Subcaves (range 6) 2346 | -10/Mines | Entered Subcaves 2346 | -10/Subcaves | Accompanied by 2 allies 2347 | -10/Subcaves | Approached by a straggling Scientist 2351 | -10/Subcaves | Led the pair of lost Derelicts to an unsafe place 2732 | -10/Subcaves | Visited Clippyterm 2737 | -10/Subcaves | Learned location of Deep Caves (-6) 2899 | -10/Subcaves | Learned location of Zion (-6) 2899 | -10/Subcaves | Met a Zionite searching for "candidates" 2967 | -10/Subcaves | Visited 4L-MR0's lab 3000 | -10/Subcaves | Build established: Scavenger-Mutant 3449 | -10/Subcaves | Ambushed by angry Subdweller bent on revenge 3827 | -10/Subcaves | A swath of the cavern ceiling suddenly collapsed 4589 | -10/Subcaves | Ambushed by Subdweller buried in earth 4896 | -10/Subcaves | Shifting Twisted Machinery released Mak. Axe 4911 | -10/Subcaves | Identified exit to Materials 4911 | -10/Subcaves | Discovered exit to Materials (range 9) 4979 | -10/Subcaves | Identified exit to Recycling 4979 | -10/Subcaves | Discovered exit to Recycling (range 15) 5011 | -10/Subcaves | Learned 4 Materials zone layouts 5030 | -10/Subcaves | Disturbed a concealed Subdweller 5077 | -10/Subcaves | Discovered exit to Materials (range 15) 5088 | -10/Subcaves | Shifting Twisted Machinery released Piercing Trap 5103 | -10/Subcaves | Shifting Twisted Machinery released Scrap Shield 5284 | -10/Subcaves | Core integrity fell below 50% 5320 | -10/Subcaves | Ambushed by Subdwellers from Twisted Machinery 5358 | -10/Subcaves | Lost 3 parts (2n1w) 5614 | -10/Subcaves | Build established: Hacker-Mutant 6106 | -10/Subcaves | A Subdweller sparked back to life 6106 | -10/Subcaves | A Subdweller sparked back to life 6106 | -10/Subcaves | A Subdweller sparked back to life 6124 | -10/Subcaves | Core integrity fell below 20% 6142 | -10/Subcaves | Found Cargo Legs 6144 | -10/Subcaves | Attached Cargo Legs, gained temporary slots: Utility x2 7034 | -10/Subcaves | Found SUBCON Basin 8386 | -10/Subcaves | Entered Recycling 10108 | -9/Recycling | Identified exit to Factory 10108 | -9/Recycling | Discovered exit to Factory (range 16) 11023 | -9/Recycling | Destroyed by Y-45 Defender with Heavy Assault Rifle Last Messages --------------- 08662_ R-06 Scavenger collects Lgt. Armor Plating. 08671_ R-06 Scavenger collects Beam Rifle. 10108_ EXIT=FOUND: FACTORY 10955_ Y-45 Defender springs to life. 10960_ Mak. Power Source destroyed. 10966_ Critical hit (Burn: +37). 10969_ Y-45 Defender destroyed. 10972_ Overheating: System interference. 10972_ Mak. Laser temporarily disabled. 10974_ Y-45 Defender destroyed. 10976_ R-06 Scavenger collects Lgt. Treads. 10980_ R-06 Scavenger collects Heat Sink. 10984_ R-06 Scavenger collects Hvy. Assault Rifle. 10985_ R-06 Scavenger collects Heat Sink. 10985_ R-06 Scavenger collects Lgt. Treads. 10987_ R-06 Scavenger collects Heat Sink. 11023_ Y-45 Defender springs to life. 11023_ Critical hit (Burn: +37). Map ----- +----------------------------------------------------+ | ? ?????? ? #??#+####+#######?#?????????????? | | ??" """? ??#?? ?????# #?##????#???????? | | "?? """????#??? ??## #????###????????? | | "?"?"??????#??? ??## #??????#????????? | | ? ? ????????????##?# % ] #???????????????? | | ????????????? ? ???# !##??????????????? | | "?" ?"????#? ????#??# ####????????????? | | ?"??"??????# ? ??## %! #????#??????????? | | ???????????# ??? #??# [ #?????#?????????? | | ?????????????? ??### *%##????##????????? | | ?????????????#?????## =#??#????????????? | | ??????????????#?????# | %#???#???????????? | | ????????#??????#??#?# ]##???#??????????? | | #????????????????#?###+###########??#????????????? | | ?????????????#?###??## #?#?#?#??????#?#??????????? | | #?????????#??????????# #?#?##???#???#????????????? | | ?????????##??#?##????# #??##??????###????????????? | | ??????????#??????#???# #??????###?[[#????????????? | | ???????????????##???## #?##?##Y##[[[##???????????? | | #????????##??#??#??#?# #####? ???????????? | | ??????????#????#??##?# #!! # #?????????????? | | ?????????????#???##### #!!!# #?????????????? | | ?????????????? ? ?+ #?????????????? | | ??????????????????#### #?????????????? | | ????????? ??? ???????# #?????????????? | | ?????????? ???? ?????# @ #?????????????? | | ?????????? ??? ?? ?#?# ##### #?????????????? | | ???????????? ? ????#?# %#???# ????#?????????? | | ???????????????? ??? %#??????????????????? | | ???????????????? ??######### ##??????????????????? | | ??????????????#????????????? #???????????????????? | | ?????????????#?#???#???????#?#???????????????????? | | ??????????????????#????????????????? ????????????? | | ????????????????????T# #???? ????????????????????? | | ???????????????????? ????????????????????????????? | | ??????????????????? ?? ???????????? ?????????????? | | ?????????????????????????????????????????????????? | | ??????????????????????????????? ?????????????????? | | ????????????????????#????????????????????????????? | | ?????????????????????????????????????????????????? | | ?????????????????????????????????????????????????? | | ?????????????????????????????????????????????????? | | ?????????????????????????????????????????????????? | | ?????????????????????????????????????????????????? | | ?????????????????????????????????????????????????? | | ?????????????????????????????????????????????????? | | ?????????????????????????????????????????????????? | | ?????????????????????????????????????????????????? | | ?????????????????????????????????????????????????? | | ?????????????????????????????????????????????????? | +----------------------------------------------------+ Best States ------------- Heat Dissipation 25 Energy Generation 18 Energy Capacity 250 Matter Stores 300 Matter Capacity 300 Sight Range 16 Robot Scan Range 14 Terrain Scan Range 16 Terrain Scan Density 10 Resistance: KI 35 Resistance: TH 35 Resistance: EX 35 Resistance: EM 35 Resistance: I 35 Resistance: S 35 Resistance: P 35 Evasion (%) 55 Recoil Reduction 2 Offensive Hacking 20 Item Schematics ----------------- Cargo Storage Unit | -10/Materials | Hacked Huge Storage Unit | -10/Materials | Hacked Hcp. Storage Unit | -10/Materials | Hacked Robot Schematics ------------------ W-16 Scout | -10/Materials | Hacked S-10 Pest | -10/Materials | Hacked G-34 Mercenary | -10/Materials | Hacked M-13 Machinist | -10/Materials | Hacked Fabricated ------------ Nothing Repaired ---------- Nothing Studied --------- None Alien Tech Used ----------------- None Achievements -------------- None Challenges ------------ None Game ------ Seed DeliveryNovaMeganuke Manual? 0 Play Time 00:23:10 Cumulative 323.9 hours Start 2026.01.29 @ 15:33:50 End 2026.01.29 @ 15:56:13 Sessions 1 Manual Loads 0 Difficulty Explorer Special Mode None Game No. 510 Rogue 0 Adventurer 0 Explorer 510 Win Type - Total 0 Types 0/0/0/0/0/0/0/0/0/0 Lore% 77 Gallery% 70 Achievement% 56 Wizard Run 0 Options --------- Layout 1 ASCII 0 Keyboard 0 Movement Mouse Keybinds 1 Fullscreen 1 Font 24/Smallcaps Map View 50x35 Zoom Use 0% Tactical HUD 1 Map Filters NONE Filters NONE Steam 1 RUN: 518432f7-e89b-44f6-89cb-125da500b675